fUSD/lending_fUSD_20260108
["ID","MTS","AMOUNT","RATE_DAILY","PERIOD"]
[400826000,1767839439630,-500.0,0.00013698,2]
[400826002,1767839439640,-503.34250989,0.00013698,2]
[400826004,1767839439649,-500.0,0.00013698,2]
[400826006,1767839439659,-500.0,0.00013698,2]
[400826008,1767839439668,-410.50760431,0.00013741,2]
[400826010,1767839439678,-268.76932914,0.00013741,2]
[400826012,1767839439688,-500.0,0.00013741,2]
[400826014,1767839439698,-500.0,0.00013741,2]
[400826016,1767839439708,-359.27,0.00013744,2]
[400826019,1767839439719,-166.66,0.00013796,2]
[400826021,1767839439729,-1186.44134713,0.00013817,2]
[400826023,1767839439738,-2973.55,0.00013827,2]
[400826025,1767839439747,-9999.99,0.00013827,2]
[400826027,1767839439756,-1197.41,0.00013827,2]
[400826029,1767839439766,-2095.37,0.00013827,2]
[400826031,1767839439775,-17327.5,0.00013827,2]
[400826033,1767839439785,-150.99,0.00013827,2]
[400826035,1767839439794,-309.81,0.00013827,2]
[400826037,1767839439804,-64965.56,0.00013827,2]
[400826039,1767839439813,-1465.64,0.00013827,2]
[400826041,1767839439826,-9999.99,0.00013827,2]
[400826043,1767839439835,-9999.99,0.00013827,2]
[400826045,1767839439844,-3175.27,0.00013827,2]
[400826048,1767839439853,-733.29,0.00013853,2]
[400826051,1767839439863,-1379.37,0.00013908,2]
[400826054,1767839439873,-501.86313919,0.00014,2]
[400826057,1767839439882,-250.031061,0.00014,2]
[400826060,1767839439892,-92406.13117841,0.00014006,2]
[400826063,1767839439902,-18116.78986027,0.00014026,2]
[400826066,1767839439913,-1562.49,0.00014064,2]
[400826069,1767839439923,-293.18,0.00014138,2]
[400826072,1767839439933,-230.60854261,0.00014157,2]
[400826074,1767839439942,-500.0,0.00014166,2]
[400826076,1767839439951,-500.0,0.00014182,2]
[400826078,1767839439961,-200.0,0.00014182,2]
[400826080,1767839439971,-1379.37,0.00014182,2]
[400826082,1767839439981,-163.02,0.00014205,2]
[400826084,1767839439990,-166.66,0.00014251,2]
[400826086,1767839440000,-1000.0,0.00014306,2]
[400826088,1767839440011,-1099.34842861,0.0001441,2]
[400826090,1767839440020,-4675.16778153,0.00014454,2]
[400826092,1767839440030,-1379.37,0.00014456,2]
[400826094,1767839440039,-500.0,0.00014509,2]
[400826096,1767839440049,-266.62868028,0.00014509,2]
[400826098,1767839440059,-18116.78986027,0.0001451,2]
[400826147,1767839440509,-152.0,0.00014564,2]
[400826149,1767839440525,-152.0,0.00014564,2]
[400826151,1767839440535,-255.0,0.00014647,2]
[400826153,1767839440545,-494.15824208,0.00014655,2]
[400826155,1767839440554,-500.0,0.00014655,2]
[400826157,1767839440563,-500.0,0.00014655,2]
[400826159,1767839440574,-500.0,0.00014655,2]
[400826161,1767839440584,-500.0,0.00014655,2]
[400826163,1767839440593,-500.0,0.00014655,2]
[400826165,1767839440602,-8739.50592502,0.0001467,2]
[400826167,1767839440611,-550.51,0.00014682,2]
[400826169,1767839440621,-1000.0,0.0001469,2]
[400826171,1767839440630,-166.66,0.00014707,2]
[400826173,1767839440640,-151.0,0.00014719,2]
[400826175,1767839440649,-626.22881488,0.0001473,2]
[400826177,1767839440658,-1379.37,0.0001473,2]
[400826179,1767839440668,-645.87533266,0.00014733,2]
[400826181,1767839440678,-3956.53,0.0001474,2]
[400826183,1767839440687,-230.60854261,0.00014781,2]
[400826185,1767839440697,-5000.0,0.000148,2]
[400826187,1767839440706,-400.88,0.00014831,2]
[400826189,1767839440715,-420.0,0.00014837,2]
[400826191,1767839440724,-420.0,0.00014837,2]
[400826193,1767839440733,-1680.0,0.0001489,2]
[400826195,1767839440742,-250.0,0.00014891,2]
[400826197,1767839440751,-1099.34842861,0.00014907,2]
[400826199,1767839440761,-150.0,0.00014955,2]
[400826200,1767839440770,-150.0,0.00014955,2]
[400826202,1767839440779,-500.0,0.00014955,2]
[400826204,1767839440789,-500.0,0.00014955,2]
[400826206,1767839440798,-500.0,0.00014955,2]
[400826209,1767839440808,-150.0,0.00014955,2]
[400826211,1767839440817,-500.0,0.00014955,2]
[400826212,1767839440829,-150.0,0.00014955,2]
[400826214,1767839440839,-500.0,0.00014955,2]
[400826216,1767839440848,-150.0,0.00014955,2]
[400826218,1767839440857,-150.0,0.00014955,2]
[400826220,1767839440868,-150.0,0.00014955,2]
[400826222,1767839440877,-150.0,0.00014955,2]
[400826224,1767839440886,-150.0,0.00014955,2]
[400826226,1767839440895,-500.0,0.00014955,2]
[400826228,1767839440905,-500.0,0.00014955,2]
[400826230,1767839440914,-150.6048441,0.00014955,2]
[400826232,1767839440924,-150.0,0.00014955,2]
[400826234,1767839440933,-150.0,0.00014955,2]
[400826236,1767839440942,-150.0,0.00014955,2]
[400826238,1767839440951,-150.0,0.00014955,2]
[400826240,1767839440960,-500.0,0.00014955,2]
[400826242,1767839440970,-500.0,0.00014955,2]
[400826244,1767839440979,-500.0,0.00014955,2]
[400826246,1767839440988,-150.0,0.00014955,2]
[400826248,1767839440997,-935.0,0.00014955,2]
[400826250,1767839441007,-150.0,0.00014955,2]
[400826252,1767839441016,-666.0,0.00014955,2]
[400826254,1767839441025,-500.0,0.00014955,2]
[400826256,1767839441035,-500.0,0.00014955,2]
[400826258,1767839441044,-150.0,0.00014955,2]
[400826260,1767839441054,-1013.0,0.00014955,2]
[400826262,1767839441063,-500.0,0.00014955,2]
[400826264,1767839441073,-500.0,0.00014955,2]
[400826266,1767839441082,-150.0,0.00014955,2]
[400826268,1767839441091,-18116.78986027,0.00014995,2]
[400826270,1767839441101,-250.0,0.00014996,2]
[400826272,1767839441111,-195.0,0.00014996,2]
[400826274,1767839441120,-300.0,0.00014996,2]
[400826276,1767839441133,-302.67771243,0.00014996,2]
[400826278,1767839441142,-195.0,0.00014996,2]
[400826280,1767839441151,-300.0,0.00014996,2]
[400826282,1767839441161,-500.11071358,0.00015,2]
[400826284,1767839441169,-5457.9662,0.00015,2]
[400826286,1767839441179,-1379.37,0.00015004,2]
[400826288,1767839441188,-150.0,0.0001501,2]
[400826290,1767839441197,-164.77040348,0.0001501,2]
[400826292,1767839441207,-521.38436778,0.0001501,2]
[400826294,1767839441217,-500.0,0.0001501,2]
[400826296,1767839441226,-500.0,0.0001501,2]
[400826298,1767839441235,-233.66248833,0.0001501,2]
[400826299,1767839441244,-500.0,0.0001501,2]
[400826302,1767839441254,-150.0,0.0001501,2]
[400826304,1767839441264,-500.0,0.0001501,2]
[400826306,1767839441273,-150.0,0.0001501,2]
[400826307,1767839441282,-150.0,0.0001501,2]
[400826309,1767839441291,-150.0,0.0001501,2]
[400826311,1767839441301,-150.0,0.0001501,2]
[400826314,1767839441311,-150.0,0.0001501,2]
[400826315,1767839441320,-500.0,0.0001501,2]
[400826317,1767839441329,-500.0,0.0001501,2]
[400826319,1767839441338,-150.0,0.0001501,2]
[400826321,1767839441347,-228.7362066,0.0001501,2]
[400826323,1767839441357,-182.05552821,0.0001501,2]
[400826325,1767839441366,-288.61019467,0.0001501,2]
[400826327,1767839441375,-500.0,0.0001501,2]
[400826329,1767839441384,-506.22263087,0.0001501,2]
[400826331,1767839441393,-500.0,0.0001501,2]
[400826333,1767839441402,-150.0,0.0001501,2]
[400826335,1767839441412,-935.0,0.0001501,2]
[400826337,1767839441421,-150.0,0.0001501,2]
[400826339,1767839441431,-666.0,0.0001501,2]
[400826341,1767839441440,-500.0,0.0001501,2]
[400826343,1767839441450,-507.79708825,0.0001501,2]
[400826345,1767839441459,-150.0,0.0001501,2]
[400826347,1767839441468,-1013.0,0.0001501,2]
[400826349,1767839441477,-500.0,0.0001501,2]
[400826351,1767839441488,-500.0,0.0001501,2]
[400826353,1767839441497,-211.64498178,0.00015065,2]
[400826355,1767839441506,-500.0,0.00015065,2]
[400826357,1767839441515,-500.87444432,0.00015065,2]
[400826359,1767839441524,-500.0,0.00015065,2]
[400826361,1767839441534,-151.6013451,0.00015065,2]
[400826363,1767839441543,-503.28378349,0.00015065,2]
[400826365,1767839441552,-150.36552725,0.00015065,2]
[400826367,1767839441561,-150.0,0.00015065,2]
[400826369,1767839441571,-150.0,0.00015065,2]
[400826371,1767839441581,-150.0,0.00015065,2]
[400826373,1767839441591,-217.19962447,0.00015065,2]
[400826375,1767839441600,-580.07664263,0.00015065,2]
[400826377,1767839441609,-500.88287597,0.00015065,2]
[400826379,1767839441618,-206.79475921,0.00015065,2]
[400826381,1767839441627,-500.0,0.00015065,2]
[400826383,1767839441636,-500.0,0.00015065,2]
[400826385,1767839441645,-150.0,0.00015065,2]
[400826387,1767839441655,-935.0,0.00015065,2]
[400826389,1767839441664,-242.66022183,0.00015065,2]
[400826391,1767839441674,-666.0,0.00015065,2]
[400826393,1767839441683,-500.0,0.00015065,2]
[400826395,1767839441692,-150.0,0.00015065,2]
[400826397,1767839441702,-1013.0,0.00015065,2]
[400826399,1767839441711,-500.0,0.00015065,2]
[400826401,1767839441719,-500.0,0.00015065,2]
[400826403,1767839441729,-500.0,0.00015068,2]
[400826405,1767839441739,-654.79,0.00015068,2]
[400826407,1767839441747,-500.0,0.00015073,2]
[400826409,1767839441757,-166.61911688,0.00015073,2]
[400826411,1767839441766,-500.0,0.00015073,2]
[400826413,1767839441775,-500.0,0.00015073,2]
[400826415,1767839441784,-500.0,0.00015073,2]
[400826417,1767839441795,-500.0,0.00015073,2]
[400826419,1767839441805,-500.0,0.00015073,2]
[400826421,1767839441814,-500.0,0.00015073,2]
[400826422,1767839441830,-500.0,0.00015073,2]
[400826424,1767839441840,-500.0,0.00015073,2]
[400826426,1767839441849,-500.0,0.00015073,2]
[400826428,1767839441858,-500.0,0.00015073,2]
[400826430,1767839441868,-500.0,0.00015073,2]
[400826433,1767839441877,-500.0,0.00015073,2]
[400826434,1767839441887,-500.0,0.00015073,2]
[400826436,1767839441896,-500.0,0.00015073,2]
[400826438,1767839441906,-500.0,0.00015073,2]
[400826440,1767839441915,-500.44132788,0.00015073,2]
[400826442,1767839441924,-500.0,0.00015073,2]
[400826444,1767839441933,-500.0,0.00015073,2]
[400826447,1767839441945,-500.0,0.00015073,2]
[400826448,1767839441954,-500.0,0.00015073,2]
[400826450,1767839441963,-500.0,0.00015073,2]
[400826452,1767839441972,-500.0,0.00015073,2]
[400826454,1767839441982,-500.0,0.00015073,2]
[400826456,1767839441991,-312.00908556,0.00015073,2]
[400826458,1767839442000,-500.0,0.00015096,2]
[400826460,1767839442010,-283093.76837741,0.000151,2]
[400826462,1767839442019,-399.62704522,0.00015119,2]
[400826464,1767839442029,-180.41152158,0.00015119,2]
[400826466,1767839442039,-150.67349054,0.00015119,2]
[400826468,1767839442048,-152.76998294,0.00015119,2]
[400826470,1767839442058,-500.0,0.00015119,2]
[400826472,1767839442067,-500.0,0.00015119,2]
[400826474,1767839442077,-150.0,0.00015119,2]
[400826476,1767839442087,-935.0,0.00015119,2]
[400826478,1767839442096,-666.0,0.00015119,2]
[400826480,1767839442106,-500.0,0.00015119,2]
[400826482,1767839442116,-150.0,0.00015119,2]
[400826484,1767839442126,-1013.0,0.00015119,2]
[400826486,1767839442135,-424.66885568,0.00015119,2]
[400826488,1767839442144,-500.0,0.00015119,2]
[400826490,1767839442153,-500.0,0.00015123,2]
[400826492,1767839442162,-500.0,0.00015151,2]
[400826494,1767839442171,-166.66,0.00015162,2]
[400826496,1767839442180,-500.0,0.00015174,2]
[400826498,1767839442190,-500.0,0.00015174,2]
[400826500,1767839442199,-180.78475044,0.00015174,2]
[400826502,1767839442208,-935.0,0.00015174,2]
[400826504,1767839442218,-666.0,0.00015174,2]
[400826506,1767839442227,-500.0,0.00015174,2]
[400826508,1767839442236,-150.0,0.00015174,2]
[400826510,1767839442246,-1013.0,0.00015174,2]
[400826512,1767839442255,-500.0,0.00015174,2]
[400826514,1767839442264,-522.31501888,0.00015178,2]
[400826516,1767839442273,-500.0,0.00015229,2]
[400826518,1767839442282,-500.0,0.00015229,2]
[400826520,1767839442292,-935.0,0.00015229,2]
[400826522,1767839442301,-666.0,0.00015229,2]
[400826524,1767839442310,-500.0,0.00015229,2]
[400826526,1767839442320,-250.0,0.00015229,2]
[400826528,1767839442329,-1013.0,0.00015229,2]
[400826530,1767839442338,-500.0,0.00015229,2]
[400826532,1767839442347,-1379.37,0.00015278,2]
[400826534,1767839442356,-500.0,0.00015284,2]
[400826536,1767839442366,-390.3961854,0.00015284,2]
[400826538,1767839442375,-935.0,0.00015284,2]
[400826540,1767839442384,-666.0,0.00015284,2]
[400826542,1767839442393,-500.0,0.00015284,2]
[400826544,1767839442405,-1013.0,0.00015284,2]
[400826546,1767839442414,-500.0,0.00015284,2]
[400826548,1767839442424,-1517.64,0.000153,2]
[400826550,1767839442433,-500.0,0.00015309,2]
[400826552,1767839442443,-25966.37,0.0001531,2]
[400826554,1767839442452,-9999.99,0.0001531,2]
[400826556,1767839442461,-500.0,0.00015339,2]
[400826558,1767839442471,-935.0,0.00015339,2]
[400826560,1767839442480,-666.0,0.00015339,2]
[400826562,1767839442490,-500.0,0.00015339,2]
[400826564,1767839442500,-1013.0,0.00015339,2]
[400826566,1767839442509,-461.60776378,0.00015339,2]
[400826568,1767839442518,-500.0,0.00015393,2]
[400826570,1767839442528,-935.0,0.00015393,2]
[400826572,1767839442537,-666.0,0.00015393,2]
[400826574,1767839442547,-500.0,0.00015393,2]
[400826576,1767839442557,-1013.0,0.00015393,2]
[400826579,1767839442567,-1099.34842861,0.00015403,2]
[400826581,1767839442577,-230.60854261,0.00015405,2]
[400826583,1767839442587,-1000.0,0.00015423,2]
[400826585,1767839442596,-500.0,0.00015448,2]
[400826587,1767839442618,-935.0,0.00015448,2]
[400826588,1767839442628,-666.0,0.00015448,2]
[400826590,1767839442637,-500.0,0.00015448,2]
[400826592,1767839442646,-1013.0,0.00015448,2]
[400826595,1767839442655,-500.0,0.00015451,2]
[400826597,1767839442664,-500.0,0.00015452,2]
[400826599,1767839442673,-18116.78986027,0.00015479,2]
[400826601,1767839442682,-1000.0,0.00015481,2]
[400826603,1767839442692,-603.85487007,0.00015503,2]
[400826605,1767839442701,-935.0,0.00015503,2]
[400826607,1767839442711,-666.0,0.00015503,2]
[400826609,1767839442721,-500.0,0.00015503,2]
[400826611,1767839442731,-1013.0,0.00015503,2]
[400826614,1767839442740,-500.0,0.00015534,2]
[400826616,1767839442749,-1379.37,0.00015552,2]
[400826618,1767839442759,-935.0,0.00015558,2]
[400826620,1767839442769,-666.0,0.00015558,2]
[400826622,1767839442778,-500.0,0.00015558,2]
[400826624,1767839442787,-1013.0,0.00015558,2]
[400826626,1767839442796,-935.0,0.00015613,2]
[400826627,1767839442805,-666.0,0.00015613,2]
[400826629,1767839442815,-500.0,0.00015613,2]
[400826631,1767839442826,-1013.0,0.00015613,2]
[400826633,1767839442836,-150.0,0.00015616,2]
[400826635,1767839442846,-166.66,0.00015617,2]
[400826637,1767839442855,-1000.0,0.00015621,2]
[400826639,1767839442867,-212.65120656,0.00015621,2]
[400826641,1767839442877,-1016.8375445,0.00015621,2]
[400826643,1767839442887,-412.45872532,0.00015621,2]
[400826645,1767839442898,-1000.0,0.00015621,2]
[400826648,1767839442908,-1000.0,0.00015621,2]
[400826650,1767839442918,-556.63084022,0.00015621,2]
[400826651,1767839442927,-1000.0,0.00015621,2]
[400826653,1767839442937,-503.39731662,0.00015621,2]
[400826656,1767839442947,-1000.0,0.00015621,2]
[400826658,1767839442956,-1001.84542925,0.00015621,2]
[400826660,1767839442966,-1000.0,0.00015621,2]
[400826661,1767839442975,-1000.0,0.00015621,2]
[400826664,1767839442985,-1000.0,0.00015621,2]
[400826666,1767839442995,-656.27078391,0.00015621,2]
[400826668,1767839443006,-1000.0,0.00015621,2]
[400826670,1767839443016,-1000.0,0.00015621,2]
[400826671,1767839443026,-1000.0,0.00015621,2]
[400826673,1767839443035,-1000.0,0.00015621,2]
[400826675,1767839443044,-413.69875704,0.00015621,2]
[400826677,1767839443053,-1000.0,0.00015621,2]
[400826679,1767839443063,-1000.0,0.00015621,2]
[400826681,1767839443078,-1000.0,0.00015621,2]
[400826683,1767839443087,-1000.0,0.00015645,2]
[400826685,1767839443097,-935.0,0.00015667,2]
[400826687,1767839443107,-666.0,0.00015667,2]
[400826689,1767839443117,-500.0,0.00015667,2]
[400826691,1767839443127,-1013.0,0.00015667,2]
[400826693,1767839443136,-935.0,0.00015722,2]
[400826695,1767839443149,-666.0,0.00015722,2]
[400826698,1767839443159,-500.0,0.00015722,2]
[400826700,1767839443170,-1013.0,0.00015722,2]
[400826702,1767839443179,-1000.0,0.00015728,2]
[400826703,1767839443189,-935.0,0.00015777,2]
[400826705,1767839443199,-666.0,0.00015777,2]
[400826707,1767839443208,-500.0,0.00015777,2]
[400826709,1767839443218,-1013.0,0.00015777,2]
[400826711,1767839443227,-2045.62935019,0.00015807,2]
[400826713,1767839443236,-500.0,0.00015808,2]
[400826715,1767839443245,-1379.37,0.00015825,2]
[400826717,1767839443255,-935.0,0.00015832,2]
[400826719,1767839443264,-666.0,0.00015832,2]
[400826721,1767839443273,-480.58098223,0.00015832,2]
[400826723,1767839443282,-1013.0,0.00015832,2]
[400826725,1767839443292,-433.0,0.00015852,2]
[400826727,1767839443301,-935.0,0.00015887,2]
[400826729,1767839443310,-666.0,0.00015887,2]
[400826731,1767839443320,-1013.0,0.00015887,2]
[400826732,1767839443330,-1000.0,0.00015897,2]
[400826733,1767839443339,-6381.71083121,0.000159,2]
[400826734,1767839443348,-282.7296497,0.000159,2]
[400826735,1767839443358,-935.0,0.00015941,2]
[400826736,1767839443368,-666.0,0.00015941,2]
[400826737,1767839443378,-1013.0,0.00015941,2]
[400826738,1767839443387,-18116.78986027,0.00015963,2]
[400826740,1767839443397,-163.02,0.00015981,2]
[400826742,1767839443406,-935.0,0.00015996,2]
[400826744,1767839443416,-666.0,0.00015996,2]
[400826746,1767839443426,-1013.0,0.00015996,2]
[400826748,1767839443436,-151.0,0.00015997,2]
[400826750,1767839443445,-6831.564559,0.00016,2]
[400826752,1767839443455,-132779.59344903,0.00016,2]
[400826754,1767839443464,-239772.54532992,0.00016,4]
[400826755,1767839443474,-200.0,0.00016,2]
[400826756,1767839443484,-230.60854261,0.00016028,2]
[400826757,1767839443493,-935.0,0.00016051,2]
[400826759,1767839443503,-666.0,0.00016051,2]
[400826761,1767839443512,-1013.0,0.00016051,2]
[400826763,1767839443521,-166.66,0.00016073,2]
[400826765,1767839443530,-1379.37,0.00016099,2]
[400826768,1767839443539,-935.0,0.00016106,2]
[400826771,1767839443548,-666.0,0.00016106,2]
[400826773,1767839443558,-1013.0,0.00016106,2]
[400826775,1767839443568,-9999.99,0.00016116,2]
[400826777,1767839443578,-1000.0,0.00016139,2]
[400826779,1767839443587,-935.0,0.0001616,2]
[400826781,1767839443597,-666.0,0.0001616,2]
[400826783,1767839443607,-1013.0,0.0001616,2]
[400826785,1767839443616,-300.72,0.00016164,2]
[400826787,1767839443626,-322.81176918,0.00016168,2]
[400826789,1767839443636,-1500.0,0.00016168,2]
[400826791,1767839443645,-1500.0,0.00016168,2]
[400826793,1767839443655,-950.84693016,0.00016168,2]
[400826795,1767839443664,-1129.4325829,0.00016168,2]
[400826797,1767839443674,-1500.0,0.00016168,2]
[400826799,1767839443683,-530.62564826,0.00016168,2]
[400826801,1767839443692,-1500.0,0.00016168,2]
[400826803,1767839443702,-1503.25434979,0.00016168,2]
[400826805,1767839443712,-1500.0,0.00016168,2]
[400826806,1767839443721,-1500.0,0.00016168,2]
[400826808,1767839443731,-1001.21839087,0.00016168,2]
[400826810,1767839443740,-1500.0,0.00016168,2]
[400826812,1767839443749,-1500.0,0.00016168,2]
[400826814,1767839443758,-1500.0,0.00016168,2]
[400826816,1767839443767,-150.0,0.000162,2]
[400826818,1767839443778,-67553.93718205,0.000162,5]
[400826820,1767839443787,-1000.0,0.0001621,2]
[400826822,1767839443797,-942.20817409,0.00016215,2]
[400826824,1767839443806,-679.69318482,0.00016215,2]
[400826827,1767839443816,-1036.41648618,0.00016215,2]
[400826828,1767839443829,-206.13,0.00016235,2]
[400826830,1767839443838,-550.51,0.00016242,2]
[400826833,1767839443848,-587.0,0.00016263,2]
[400826835,1767839443857,-587.0,0.00016263,2]
[400826837,1767839443867,-150.0,0.00016267,2]
[400826838,1767839443876,-1000.0,0.00016269,2]
[400826840,1767839443885,-150.0,0.00016333,2]
[400826842,1767839443895,-200.0,0.0001634,2]
[400826844,1767839443904,-234.79954054,0.00016373,2]
[400826846,1767839443914,-1379.37,0.00016373,2]
[400826848,1767839443923,-2351.0,0.0001638,2]
[400826850,1767839443932,-1000.0,0.00016386,2]
[400826852,1767839443942,-150.0,0.000164,2]
[400826854,1767839443951,-833.0,0.000164,2]
[400826856,1767839443961,-162.0,0.000164,2]
[400826858,1767839443970,-833.0,0.000164,2]
[400826860,1767839443980,-500.0,0.00016437,2]
[400826862,1767839443991,-451.90263959,0.00016437,2]
[400826864,1767839444001,-500.0,0.00016438,2]
[400826866,1767839444010,-500.0,0.00016438,2]
[400826868,1767839444019,-500.0,0.00016438,2]
[400826870,1767839444028,-500.0,0.00016438,2]
[400826872,1767839444038,-500.0,0.00016438,2]
[400826874,1767839444047,-500.0,0.00016438,2]
[400826876,1767839444056,-500.0,0.00016438,2]
[400826878,1767839444065,-500.0,0.00016438,2]
[400826880,1767839444076,-500.0,0.00016438,2]
[400826882,1767839444086,-500.0,0.00016438,2]
[400826884,1767839444095,-500.0,0.00016438,2]
[400826886,1767839444104,-500.0,0.00016438,2]
[400826888,1767839444113,-500.0,0.00016438,2]
[400826890,1767839444124,-500.0,0.00016438,2]
[400826892,1767839444133,-500.0,0.00016438,2]
[400826894,1767839444143,-500.0,0.00016438,2]
[400826896,1767839444152,-500.0,0.00016438,2]
[400826898,1767839444161,-500.0,0.00016438,2]
[400826900,1767839444170,-500.0,0.00016438,2]
[400826902,1767839444181,-500.0,0.00016438,2]
[400826904,1767839444190,-500.0,0.00016438,2]
[400826906,1767839444200,-500.0,0.00016438,2]
[400826908,1767839444209,-255.71353672,0.00016438,2]
[400826910,1767839444219,-500.0,0.00016438,2]
[400826912,1767839444229,-500.0,0.00016438,2]
[400826914,1767839444238,-500.0,0.00016438,2]
[400826916,1767839444248,-500.0,0.00016438,2]
[400826918,1767839444258,-500.0,0.00016438,2]
[400826920,1767839444267,-500.0,0.00016438,2]
[400826922,1767839444276,-500.0,0.00016438,2]
[400826924,1767839444286,-1452.5971494,0.00016438,2]
[400826926,1767839444295,-1452.5971494,0.00016438,2]
[400826928,1767839444305,-1452.5971494,0.00016438,2]
[400826930,1767839444315,-1452.5971494,0.00016438,2]
[400826932,1767839444325,-1452.5971494,0.00016438,2]
[400826934,1767839444334,-1452.5971494,0.00016438,2]
[400826936,1767839444343,-1452.5971494,0.00016438,2]
[400826938,1767839444352,-1452.5971494,0.00016438,2]
[400826940,1767839444362,-1452.5971494,0.00016438,2]
[400826942,1767839444372,-1452.5971494,0.00016438,2]
[400826944,1767839444383,-1452.5971494,0.00016438,2]
[400826946,1767839444392,-1452.5971494,0.00016438,2]
[400826948,1767839444402,-1452.5971494,0.00016438,2]
[400826951,1767839444412,-1452.5971494,0.00016438,2]
[400826953,1767839444422,-1452.5971494,0.00016438,2]
[400826954,1767839444431,-1452.5971494,0.00016438,2]
[400826956,1767839444441,-1452.5971494,0.00016438,2]
[400826958,1767839444450,-1452.5971494,0.00016438,2]
[400826960,1767839444459,-1452.5971494,0.00016438,2]
[400826962,1767839444469,-1452.5971494,0.00016438,2]
[400826964,1767839444478,-1452.5971494,0.00016438,2]
[400826993,1767839444708,-1452.5971494,0.00016438,2]
[400826996,1767839444748,-1452.5971494,0.00016438,2]
[400826998,1767839444757,-1452.5971494,0.00016438,2]
[400827000,1767839444766,-1452.5971494,0.00016438,2]
[400827002,1767839444775,-1452.5971494,0.00016438,2]
[400827003,1767839444784,-1452.5971494,0.00016438,2]
[400827005,1767839444794,-1452.5971494,0.00016438,2]
[400827007,1767839444803,-1452.5971494,0.00016438,2]
[400827009,1767839444813,-1452.5971494,0.00016438,2]
[400827012,1767839444824,-1452.5971494,0.00016438,2]
[400827014,1767839444838,-1452.5971494,0.00016438,2]
[400827016,1767839444848,-1452.5971494,0.00016438,2]
[400827018,1767839444857,-1452.5971494,0.00016438,2]
[400827020,1767839444867,-1452.5971494,0.00016438,2]
[400827021,1767839444878,-1452.5971494,0.00016438,2]
[400827023,1767839444888,-1452.5971494,0.00016438,2]
[400827026,1767839444899,-1452.5971494,0.00016438,2]
[400827028,1767839444908,-1452.5971494,0.00016438,2]
[400827030,1767839444917,-1452.5971494,0.00016438,2]
[400827032,1767839444927,-1452.5971494,0.00016438,2]
[400827034,1767839444937,-1452.5971494,0.00016438,2]
[400827036,1767839444946,-1452.5971494,0.00016438,2]
[400827038,1767839444956,-1452.5971494,0.00016438,2]
[400827040,1767839444965,-1452.5971494,0.00016438,2]
[400827042,1767839444975,-1452.5971494,0.00016438,2]
[400827043,1767839444985,-1452.5971494,0.00016438,2]
[400827045,1767839444995,-1452.5971494,0.00016438,2]
[400827047,1767839445005,-1452.5971494,0.00016438,2]
[400827049,1767839445015,-1452.5971494,0.00016438,2]
[400827051,1767839445025,-1452.5971494,0.00016438,2]
[400827053,1767839445034,-1452.5971494,0.00016438,2]
[400827055,1767839445044,-1452.5971494,0.00016438,2]
[400827057,1767839445054,-1452.59714938,0.00016438,2]
[400827059,1767839445064,-1452.59714938,0.00016438,2]
[400827061,1767839445075,-1452.59714938,0.00016438,2]
[400827064,1767839445085,-1452.59714938,0.00016438,2]
[400827066,1767839445095,-1452.59714938,0.00016438,2]
[400827068,1767839445105,-1452.59714938,0.00016438,2]
[400827070,1767839445115,-1452.59714938,0.00016438,2]
[400827072,1767839445125,-1452.59714938,0.00016438,2]